bitfinex-derivatives/quotes_ETHF0:USTF0_20250105
["timestamp","ask_amount","ask_price","bid_price","bid_amount"]
[1736110146447,2.21974365,3631.1,3631.0,1.67802]
[1736110146635,3.4557,3631.3,3631.1,0.24791]
[1736110146835,3.2078,3631.3,3631.2,0.24791]
[1736110147038,2.21974365,3631.4,3631.2,0.24791]
[1736110147242,2.46764365,3631.4,3631.2,0.24791]
[1736110147442,2.21974365,3631.4,3631.0,1.4301]
[1736110147642,2.46764365,3631.4,3631.1,0.24791]
[1736110147842,2.46764365,3631.4,3631.2,0.24791]
[1736110150957,0.2479,3631.3,3631.1,0.24791]
[1736110151149,2.21974365,3631.4,3631.1,0.24791]
[1736110151150,2.46764365,3631.4,3631.1,0.24792]
[1736110151447,2.37219936,3632.1,3631.0,4.6379]
[1736110151448,0.24788,3631.6,3631.0,4.6379]
[1736110151651,0.24788,3631.6,3631.3,0.2479]
[1736110151850,0.24788,3631.6,3631.0,4.6379]
[1736110152342,2.21974365,3631.7,3631.0,4.6379]
[1736110152743,2.21974365,3631.7,3631.2,0.2479]
[1736110153336,0.24789,3631.5,3631.3,0.2479]
[1736110153543,0.24789,3631.6,3631.3,0.2479]
[1736110153745,0.24789,3631.5,3631.3,0.2479]
[1736110155047,0.24789,3631.5,3631.2,3.2078]
[1736110155048,0.24786,3631.6,3631.4,0.24787]
[1736110155251,0.24786,3631.6,3631.5,0.6836]
[1736110155455,3.2078,3632.1,3631.5,0.6836]
[1736110155649,0.24785,3631.7,3631.6,3.8713]
[1736110155951,2.21974365,3632.0,3631.6,3.8713]
[1736110156158,0.24785,3631.8,3631.7,0.6918]
[1736110156450,2.21974365,3632.0,3631.6,0.6635]
[1736110156650,2.46759365,3631.7,3631.6,0.6635]
[1736110157856,2.46759365,3631.7,3631.6,1.3652]
[1736110158653,2.21974365,3632.0,3631.6,1.3652]
[1736110158958,3.45563,3632.1,3631.9,0.24783]
[1736110159160,0.24783,3632.0,3631.9,0.24784]
[1736110159359,3.2078,3632.1,3631.6,4.573]
[1736110159657,3.2078,3632.1,3632.0,0.24783]
[1736110160054,3.45563,3632.1,3631.9,0.24783]
[1736110160359,3.45563,3632.1,3632.0,0.24783]
[1736110160651,3.2078,3632.1,3632.0,0.24783]
[1736110160850,0.24781,3632.3,3632.0,3.2078]
[1736110161055,0.24781,3632.3,3632.1,0.96362]
[1736110161362,5.09338083,3632.6,3632.1,0.7158]
[1736110161363,0.24782,3632.2,3632.1,0.7158]
[1736110165261,0.24782,3632.2,3632.1,3.9236]
[1736110166162,0.24782,3632.2,3632.1,0.7158]
[1736110166360,0.24782,3632.2,3632.1,3.9236]
[1736110166574,0.24781,3632.3,3632.1,4.17142]
[1736110166862,0.24781,3632.3,3632.2,0.6982]
[1736110168956,0.24781,3632.3,3632.2,3.906]
[1736110169362,0.24778,3632.7,3632.3,0.24781]
[1736110169553,0.2478,3632.5,3632.4,0.709]
[1736110171053,2.21974365,3632.6,3632.2,3.906]
[1736110171260,0.24781,3632.3,3632.2,3.906]
[1736110171962,0.24781,3632.3,3632.2,4.15382]
[1736110172364,0.24781,3632.3,3632.2,3.906]
[1736110172768,0.24781,3632.3,3632.2,4.15382]
[1736110173365,0.24781,3632.4,3632.2,3.906]
[1736110173564,0.24781,3632.4,3632.3,0.24781]
[1736110173961,0.2478,3632.5,3632.3,0.24781]
[1736110174269,2.15293718,3632.8,3632.6,0.24779]
[1736110174270,0.24778,3632.8,3632.6,0.24779]
[1736110174466,0.24778,3632.8,3632.7,1.3984]
[1736110174966,2.15293718,3632.9,3632.8,0.24777]
[1736110175266,2.40070718,3632.9,3632.8,0.24777]
[1736110175467,0.24777,3632.9,3632.8,0.24777]
[1736110176564,0.24777,3632.9,3632.7,1.64618]
[1736110176770,0.24777,3632.8,3632.7,1.64618]
[1736110176961,0.24777,3632.8,3632.7,4.85398]
[1736110177366,0.24777,3632.8,3632.7,4.6062]
[1736110177768,0.24777,3632.8,3632.7,3.9394]
[1736110179671,0.24777,3632.8,3632.7,4.18718]
[1736110179871,0.6873,3633.1,3632.7,3.9394]
[1736110180070,0.24777,3633.0,3632.8,0.24777]
[1736110180371,0.24777,3632.9,3632.8,0.88867]
[1736110181162,0.7091,3633.3,3632.9,0.24776]
[1736110181364,2.15293718,3633.4,3633.3,0.24774]
[1736110181564,2.15293718,3633.4,3633.3,3.45554]
[1736110181773,2.15293718,3633.4,3633.3,4.73334]
[1736110182571,2.40066718,3633.4,3633.3,4.4856]
[1736110182767,0.24775,3633.1,3633.0,0.6522]
[1736110183071,0.24775,3633.2,3633.0,0.89996]
[1736110183272,0.24775,3633.3,3633.1,0.24775]
[1736110183774,0.24774,3633.3,3633.2,0.6755]
[1736110185067,0.24771,3633.7,3633.4,0.24773]
[1736110185275,0.24772,3633.6,3633.5,0.6609]
[1736110186873,0.24773,3633.4,3633.3,3.2078]
[1736110187072,0.4331152,3633.9,3633.5,0.24772]
[1736110187265,0.4331152,3633.9,3633.7,0.24771]
[1736110187266,0.6808152,3633.9,3633.7,0.24771]
[1736110188173,0.6808152,3633.9,3633.6,0.24772]
[1736110188373,0.6808152,3633.9,3633.7,1.3592]
[1736110188567,0.6808152,3633.9,3633.7,1.997]
[1736110188763,0.24771,3633.8,3633.7,1.997]
[1736110189169,0.4331152,3633.9,3633.7,5.2048]
[1736110189367,0.6808152,3633.9,3633.7,5.2048]
[1736110189570,0.6808152,3633.9,3633.7,5.45251]
[1736110189973,0.4331152,3633.9,3633.7,5.2048]
[1736110190179,0.2477,3633.9,3633.7,5.45251]
[1736110190478,3.8506,3634.2,3633.7,1.997]
[1736110190479,0.24771,3633.8,3633.7,1.997]
[1736110191577,5.42754365,3633.8,3632.9,3.2078]
[1736110191780,0.24777,3632.9,3632.7,0.24778]
[1736110192079,0.24777,3632.8,3632.6,2.28828]
[1736110192681,0.24778,3632.7,3632.6,2.0405]
[1736110208189,0.24779,3632.6,3632.5,3.2078]
[1736110208486,0.24779,3632.6,3632.5,3.4556]
[1736110209189,0.24779,3632.6,3632.5,3.2078]
[1736110209890,0.24779,3632.6,3632.5,3.4556]
[1736110210484,0.24779,3632.6,3632.5,3.2078]
[1736110210690,0.24779,3632.6,3632.5,3.4556]
[1736110211184,0.24779,3632.6,3632.5,3.2078]
[1736110211584,0.24779,3632.6,3632.5,3.4556]
[1736110212290,2.40072718,3632.6,3632.5,3.4556]
[1736110212791,2.15293718,3632.6,3632.5,3.4556]
[1736110221382,2.15293718,3632.6,3632.1,5.2382]
[1736110221583,0.24781,3632.3,3632.2,0.24781]
[1736110221983,0.24782,3632.2,3632.1,5.2382]
[1736110222190,0.24781,3632.3,3632.2,0.24781]
[1736110222592,0.24781,3632.3,3632.1,5.2382]
[1736110222593,0.24782,3632.2,3632.1,5.48602]
[1736110223191,6.53341076,3632.5,3632.1,5.2382]
[1736110223192,3.22940577,3632.3,3632.1,5.2382]
[1736110223385,3.22940577,3632.3,3632.2,0.24782]
[1736110223893,2.15816983,3632.3,3632.1,5.2382]
[1736110224093,2.15816983,3632.3,3632.2,0.24782]
[1736110226391,0.24781,3632.4,3632.1,5.2382]
[1736110226392,2.40597983,3632.4,3632.3,0.24781]
[1736110226693,2.40597983,3632.4,3632.1,5.2382]
[1736110226894,2.40597983,3632.4,3632.3,0.24781]
[1736110227995,2.15816983,3632.4,3632.1,5.2382]
[1736110228194,2.40597983,3632.4,3632.1,5.2382]
[1736110228400,2.40597983,3632.4,3632.3,0.24781]
[1736110229799,0.24781,3632.4,3632.3,0.24781]
[1736110229998,3.22940577,3632.5,3632.1,5.2382]
[1736110230299,3.22940577,3632.5,3632.4,0.2478]
[1736110231692,2.15860557,3632.5,3632.4,0.2478]
[1736110235400,3.64250488,3632.6,3632.5,0.2478]
[1736110236394,3.89029488,3632.6,3632.4,0.2478]
[1736110236692,0.66088911,3632.6,3632.4,0.2478]
[1736110237498,0.2478,3632.5,3632.4,0.2478]
[1736110238294,0.2478,3632.5,3632.1,5.2382]
[1736110238494,0.2478,3632.5,3632.3,0.24781]
[1736110238900,4.31366711,3632.6,3632.3,0.24781]
[1736110239103,1.2487469,3632.4,3632.3,0.24781]
[1736110239297,5.97551312,3632.4,3632.3,0.24781]
[1736110240197,5.72771312,3632.4,3632.3,0.24781]
[1736110240398,1.41404601,3632.4,3632.3,0.24781]
[1736110241394,0.41309911,3632.4,3632.3,0.24781]
[1736110241594,5.39208388,3632.5,3632.1,5.2382]
[1736110241595,6.64082078,3632.6,3632.4,0.2478]
[1736110242503,4.7377427,3632.5,3632.4,0.2478]
[1736110242802,4.9855427,3632.5,3632.4,0.2478]
[1736110243696,0.66089911,3632.5,3632.4,0.2478]
[1736110244997,0.2478,3632.5,3632.4,0.2478]
[1736110245399,1.0009469,3632.6,3632.1,5.2382]
[1736110245600,0.2478,3632.4,3632.3,0.24781]
[1736110246000,4.57455707,3632.4,3632.3,0.24781]
[1736110247607,4.98765618,3632.4,3632.3,0.24781]
[1736110247801,4.73985618,3632.4,3632.3,0.24781]
[1736110249408,4.73985618,3632.4,3632.3,1.2487569]
[1736110249809,3.6584723,3632.4,3632.3,1.2487569]
[1736110251213,2.16365991,3632.4,3632.3,7.70674952]
[1736110252514,3.24537319,3632.5,3632.4,0.2478]
[1736110254107,2.13437319,3632.5,3632.4,0.2478]
[1736110254304,2.13437319,3632.5,3632.4,5.2478]
[1736110254502,4.73985618,3632.7,3632.6,0.24779]
[1736110254704,4.73985618,3632.7,3632.6,5.5345369]
[1736110255005,3.62885618,3632.7,3632.6,5.5345369]
[1736110255514,5.39208388,3633.0,3632.6,5.5345369]
[1736110255515,2.16381988,3633.0,3632.6,5.2867469]
[1736110255713,2.16381988,3633.0,3632.9,1.2487169]
[1736110256514,2.16381988,3633.1,3633.0,0.24776]
[1736110256814,2.16381988,3633.1,3633.0,3.45556]
[1736110257713,2.16381988,3633.3,3633.0,11.12860348]
[1736110257913,2.16381988,3633.3,3633.2,0.24775]
[1736110258420,2.16381988,3633.3,3633.2,3.45555]
[1736110259215,2.16381988,3633.4,3633.2,3.2078]
[1736110259415,2.16381988,3633.4,3633.3,0.24774]
[1736110259915,0.27781988,3633.4,3633.3,3.3276338]
[1736110261014,5.39208388,3634.0,3633.3,8.0798938]
[1736110261212,5.39208388,3634.0,3633.9,1.2486469]
[1736110261423,0.41294221,3634.2,3634.0,0.24769]
[1736110261722,0.41294221,3634.2,3634.1,4.4564369]
[1736110262714,0.6831,3634.4,3634.3,0.24767]
[1736110267024,0.7014,3635.0,3634.9,0.24763]
[1736110267223,1.4223,3635.0,3634.9,0.24763]
[1736110267726,0.7209,3635.0,3634.9,0.24763]
[1736110270518,0.7121,3635.4,3634.8,3.29230688]
[1736110270719,0.7121,3635.4,3635.3,3.4554]
[1736110270918,0.6731,3635.8,3635.3,3.4554]
[1736110270919,0.6731,3635.8,3635.3,3.2078]
[1736110271128,0.7067,3635.7,3635.5,0.24759]
[1736110271534,0.24758,3635.6,3635.4,0.2476]
[1736110271738,0.7277,3635.6,3635.4,0.2476]
[1736110272440,0.7277,3635.6,3635.5,0.24759]
[1736110275443,0.7277,3635.6,3635.4,0.24759]
[1736110275642,0.7277,3635.6,3635.5,0.24759]
[1736110277044,0.43290689,3636.0,3635.9,0.24756]
[1736110277243,2.1305,3636.2,3636.1,0.24755]
[1736110278742,1.4577,3636.2,3636.1,3.45535]
[1736110279140,0.7315,3636.2,3636.1,3.45535]
[1736110279534,0.7366,3636.7,3636.6,0.24752]
[1736110280838,1.4369,3636.7,3636.6,0.24752]
[1736110281245,1.68441,3636.7,3636.5,3.2078]
[1736110281447,1.68441,3636.7,3636.5,3.45532]
[1736110282049,8.94143993,3636.6,3635.6,3.2078]
[1736110282249,0.24756,3636.0,3635.6,3.2078]
[1736110282450,1.4032,3635.9,3635.8,0.24757]
[1736110283347,1.4032,3635.9,3635.8,0.24482015]
[1736110284451,0.7003,3635.9,3635.8,0.24482015]
[1736110284651,0.24757,3635.8,3635.6,3.45538]
[1736110285944,0.24757,3635.8,3635.6,3.2078]
[1736110286350,0.24757,3635.8,3635.6,3.45538]
[1736110286952,0.7003,3635.9,3635.6,3.45538]
[1736110287155,0.7003,3635.9,3635.6,3.2078]
[1736110287353,0.7003,3635.9,3635.7,0.24757]
[1736110288856,0.94786,3635.9,3635.7,0.24757]
[1736110290452,0.24757,3635.8,3635.6,3.45538]
[1736110290655,0.94787,3635.9,3635.7,0.24758]
[1736110291152,0.94787,3635.9,3635.6,3.2078]
[1736110291153,0.7003,3635.9,3635.6,3.2078]
[1736110291556,0.7003,3635.9,3635.8,0.24757]
[1736110291950,0.7003,3635.9,3635.8,0.94447]
[1736110292651,0.702,3636.1,3636.0,0.24756]
[1736110293454,0.7164,3636.4,3636.3,0.24754]
[1736110293656,3.2078,3637.3,3636.3,2.21530688]
[1736110293849,3.2078,3637.3,3635.9,1.077]
[1736110293850,2.37426,3637.4,3637.2,0.24747]
[1736110294050,2.1268,3637.4,3637.2,0.24747]
[1736110294253,1.4052,3637.4,3637.3,0.24747]
[1736110294755,2.94500688,3638.0,3637.1,3.2078]
[1736110294957,0.24744,3637.8,3637.5,3.45525]
[1736110295148,2.21530688,3637.7,3637.1,3.2078]
[1736110295345,0.24747,3637.4,3637.1,3.45528]
[1736110295551,0.24747,3637.3,3637.1,3.2078]
[1736110295753,0.24747,3637.4,3637.1,3.45528]
[1736110295953,0.6888,3637.3,3637.1,3.2078]
[1736110296152,0.24748,3637.1,3636.8,1.7]
[1736110296555,0.2475,3636.9,3636.7,4.2848]
[1736110296859,0.24749,3637.0,3636.7,4.53231]
[1736110297155,0.2475,3636.9,3636.7,4.2848]
[1736110297357,2.21530688,3637.1,3636.7,4.2848]
[1736110297558,0.24749,3637.0,3636.7,4.53231]
[1736110297958,0.24749,3637.0,3636.7,4.2848]
[1736110298158,0.24749,3637.0,3636.7,4.53231]
[1736110298359,2.21530688,3637.1,3636.7,4.53231]
[1736110298558,0.24749,3637.0,3636.7,4.53231]
[1736110302664,0.24749,3637.0,3636.7,4.2848]
[1736110302861,0.24749,3637.0,3636.7,4.53231]
[1736110303259,0.24748,3637.1,3636.8,0.2475]
[1736110303561,0.24748,3637.1,3636.8,0.663]
[1736110304561,2.164,3637.3,3636.8,0.663]
[1736110304768,0.24749,3637.0,3636.8,0.663]
[1736110305357,0.24749,3637.1,3636.8,0.663]
[1736110306061,2.164,3637.3,3636.8,0.663]
[1736110306259,0.24749,3637.0,3636.8,0.663]
[1736110306656,2.164,3637.3,3636.8,0.663]
[1736110306861,0.24749,3637.1,3636.8,0.663]
[1736110307669,0.24749,3637.0,3636.8,0.663]
[1736110307970,2.164,3637.3,3636.3,3.2078]
[1736110307971,2.21530688,3637.1,3636.3,3.2078]
[1736110308270,0.24753,3636.5,3636.3,3.2078]
[1736110308566,0.8572,3636.4,3636.3,3.2078]
[1736110308755,0.8572,3636.4,3636.3,3.45534]
[1736110309560,1.10473,3636.4,3635.9,3.6434]
[1736110309764,0.24755,3636.1,3635.9,3.6434]
[1736110310059,2.46285688,3636.2,3635.9,3.45536]
[1736110310262,0.24754,3636.3,3636.0,0.24756]
[1736110310769,0.8572,3636.4,3635.9,3.2078]
[1736110311066,0.24755,3636.2,3635.9,3.45536]
[1736110313071,0.24754,3636.3,3635.9,3.2078]
[1736110313265,0.8572,3636.4,3635.9,3.2078]
[1736110313466,0.4475,3636.4,3636.2,0.24754]
[1736110313664,0.24755,3636.2,3635.9,3.2078]
[1736110313869,2.46286688,3636.0,3635.9,3.2078]
[1736110314367,0.24756,3636.0,3635.9,3.2078]
[1736110315367,2.46286688,3636.0,3635.9,3.2078]
[1736110316576,0.24757,3635.8,3635.6,3.2078]
[1736110316965,0.4178,3635.7,3635.6,3.2078]
[1736110317166,0.4178,3635.7,3635.6,3.45538]
[1736110317467,0.4178,3635.7,3635.6,3.2078]
[1736110319676,0.66538,3635.7,3635.6,3.2078]
[1736110320263,0.4178,3635.7,3635.6,3.2078]
[1736110321572,3.23476271,3636.0,3635.6,3.2078]
[1736110321969,3.23476271,3636.0,3635.7,0.63588]
[1736110322375,3.23476271,3636.0,3635.8,0.4193]
[1736110322677,3.23476271,3636.0,3635.9,0.4463]
[1736110323378,0.24757,3635.9,3635.6,3.2078]
[1736110323566,0.4402,3635.9,3635.6,3.2078]
[1736110323772,0.4402,3635.9,3635.7,0.24757]
[1736110324478,0.4402,3635.9,3635.6,3.45538]
[1736110324679,0.24757,3635.8,3635.6,3.2078]
[1736110324877,2.46288688,3635.7,3635.6,3.2078]
[1736110328572,0.4062,3635.8,3635.6,3.2078]
[1736110328879,3.23476271,3635.9,3635.6,3.2078]
[1736110329181,3.23476271,3635.9,3635.8,0.24757]
[1736110329375,0.24758,3635.8,3635.6,3.2078]
[1736110329676,0.24758,3635.8,3635.6,3.45538]
[1736110329677,0.4269,3635.8,3635.6,3.45538]
[1736110330577,0.4269,3635.8,3635.6,0.24758]
[1736110330770,0.67447,3635.8,3635.6,0.24758]
[1736110333584,0.4269,3635.8,3635.4,3.2078]
[1736110333771,0.4269,3635.8,3635.5,0.24759]
[1736110333975,0.67447,3635.8,3635.5,0.24759]
[1736110334981,0.4269,3635.8,3635.4,3.2078]
[1736110335176,0.4269,3635.8,3635.6,0.24758]
[1736110335382,0.24756,3636.0,3635.8,0.24757]
[1736110335586,0.24756,3636.0,3635.9,0.4471]
[1736110337276,0.24755,3636.1,3635.9,0.69466]
[1736110337477,0.24755,3636.1,3636.0,0.24756]
[1736110337678,0.24755,3636.1,3635.9,1.14046]
[1736110338478,0.4415,3636.2,3636.1,0.24755]
[1736110339287,0.4415,3636.2,3636.0,0.3884]
[1736110339288,0.68905,3636.2,3636.0,0.63595]
[1736110341286,0.24756,3636.0,3635.9,0.4471]
[1736110341690,0.24756,3635.9,3635.8,3.2078]
[1736110341886,0.24758,3635.7,3635.6,0.4162]
[1736110342589,0.2476,3635.4,3635.3,3.2078]
[1736110343986,0.2476,3635.4,3635.0,0.8246]
[1736110343987,0.24762,3635.0,3634.9,3.2078]
[1736110344190,0.24764,3634.9,3634.6,5.13579473]
[1736110344592,2.21530688,3635.3,3634.8,0.24764]
[1736110344790,0.24763,3635.0,3634.7,0.24764]
[1736110346298,2.21530688,3635.0,3634.6,0.816]
[1736110346598,3.23476271,3635.2,3634.5,3.2078]
[1736110346599,0.24765,3634.6,3634.5,3.2078]
[1736110348693,2.21530688,3634.7,3634.5,3.2078]
[1736110348993,2.46295688,3634.7,3634.5,3.2078]
[1736110349188,0.24765,3634.6,3634.5,3.2078]
[1736110350389,0.24765,3634.7,3634.5,3.2078]
[1736110350590,0.8441,3634.9,3634.5,3.2078]
[1736110350791,0.24765,3634.6,3634.5,3.2078]
[1736110352393,2.21530688,3634.7,3634.0,3.2078]
[1736110352394,0.24769,3634.1,3634.0,3.2078]
[1736110353187,0.8294,3634.2,3634.0,3.2078]
[1736110353995,0.24769,3634.1,3634.0,3.2078]
[1736110354692,1.07708,3634.2,3634.0,3.2078]
[1736110355394,0.24771,3633.7,3633.6,3.2078]
[1736110356694,0.24775,3633.2,3633.0,0.4064]
[1736110356995,0.24775,3633.2,3632.9,3.2078]
[1736110357199,0.24775,3633.3,3632.9,3.45556]
[1736110357692,0.24775,3633.3,3633.0,0.24776]
[1736110357892,0.8669,3633.6,3633.0,2.21530688]
[1736110358099,0.8669,3633.6,3633.4,0.24773]
[1736110358392,0.24773,3633.5,3633.3,3.2078]
[1736110358594,1.11462,3633.6,3633.3,3.2078]
[1736110358997,0.24773,3633.5,3633.3,3.2078]
[1736110359292,1.11462,3633.6,3633.3,3.45554]
[1736110359693,0.4372,3633.6,3633.5,0.24773]
[1736110360001,0.4372,3633.6,3633.4,0.8507]
[1736110360196,0.4372,3633.6,3633.4,1.09843]
[1736110360699,0.4372,3633.6,3633.4,0.8507]
[1736110360901,0.4372,3633.6,3633.5,0.24773]
[1736110365395,0.4372,3633.6,3633.4,0.8507]
[1736110365598,0.4372,3633.6,3633.4,1.09843]
[1736110365793,0.24767,3634.3,3633.9,0.24769]
[1736110365997,0.24767,3634.3,3634.1,0.24769]
[1736110366199,3.6209,3634.5,3634.0,0.8508]
[1736110366200,3.2078,3634.5,3634.0,0.8508]
[1736110366407,0.24766,3634.5,3634.3,3.2078]
[1736110367305,0.24766,3634.5,3634.3,3.45547]
[1736110370308,0.24767,3634.4,3634.3,3.2078]
[1736110371205,2.63870688,3634.7,3633.8,3.2078]
[1736110371406,0.2477,3633.9,3633.8,3.4555]
[1736110371608,0.2477,3633.9,3633.8,3.2078]
[1736110372902,0.24769,3634.1,3633.8,3.4555]
[1736110373302,2.21530688,3634.4,3633.8,3.4555]
[1736110373504,0.24769,3634.0,3633.8,3.2078]
[1736110373704,0.4377,3633.9,3633.8,3.45551]
[1736110374604,0.4377,3633.9,3633.8,3.2078]
[1736110374803,0.4377,3633.9,3633.8,3.45551]
[1736110377213,0.4377,3633.9,3633.8,3.2078]
[1736110378610,0.4377,3633.9,3633.8,3.45551]
[1736110381224,0.24768,3634.3,3633.8,3.2078]
[1736110381521,0.4446,3634.4,3634.0,0.24769]
[1736110381721,0.24769,3634.2,3634.0,0.24769]
[1736110381921,0.24769,3634.1,3633.8,3.2078]
[1736110382126,2.65990688,3634.4,3633.8,3.2078]
[1736110382424,0.4228,3634.0,3633.9,0.2477]
[1736110385427,0.4446,3634.4,3634.3,0.24767]
[1736110385727,0.4446,3634.4,3634.2,3.2078]
[1736110385925,0.4446,3634.4,3634.3,0.24767]
[1736110386529,0.4446,3634.4,3634.2,3.2078]
[1736110386727,0.4446,3634.4,3634.3,0.24767]
[1736110387027,0.4446,3634.4,3634.3,0.68867]
[1736110390134,2.59482979,3634.4,3634.3,0.68867]
[1736110390331,2.15022979,3634.4,3634.3,1.11877]
[1736110391442,2.15022979,3634.8,3634.7,0.24765]
[1736110391733,2.15022979,3634.8,3634.7,3.45545]
[1736110392828,2.15022979,3635.1,3635.0,0.24762]
[1736110393934,2.56542979,3635.4,3634.9,1.077]
[1736110394138,2.56542979,3635.4,3635.3,0.2476]
[1736110394339,2.56542979,3635.4,3635.2,3.2078]
[1736110394340,2.56542979,3635.4,3635.2,3.45541]
[1736110394734,2.56542979,3635.4,3635.3,0.2476]
[1736110395040,0.2476,3635.3,3635.2,3.2078]
[1736110395234,2.88940688,3635.3,3635.2,3.2078]
[1736110396841,6.53699482,3635.3,3635.2,3.2078]
[1736110398244,6.12416959,3635.3,3635.2,3.2078]
[1736110398942,0.24761,3635.2,3635.0,0.24762]
[1736110399240,0.24761,3635.2,3635.1,0.24762]
[1736110399445,6.12417959,3635.3,3635.1,0.24762]
[1736110400240,3.23476271,3635.3,3635.0,3.2078]
[1736110400545,3.23476271,3635.3,3635.2,0.24761]
[1736110400945,3.64996271,3635.4,3635.3,0.2476]
[1736110401945,2.57085491,3635.4,3635.3,0.2476]
[1736110402539,2.81845491,3635.4,3635.2,0.24761]
[1736110403948,2.57085491,3635.4,3635.3,0.2476]
[1736110404339,2.81845491,3635.4,3635.3,0.2476]
[1736110404541,2.57085491,3635.4,3635.3,0.2476]
[1736110405146,0.24761,3635.3,3635.1,0.8727]
[1736110405347,0.24761,3635.3,3635.2,0.24761]
[1736110406249,2.15565491,3635.3,3635.2,0.24761]
[1736110406442,2.40325491,3635.3,3635.2,0.24761]
[1736110408648,2.40325491,3635.3,3635.1,0.4412]
[1736110408649,0.24761,3635.2,3635.1,0.68881]
[1736110408950,2.40326491,3635.3,3635.1,0.68881]
[1736110409147,2.40326491,3635.3,3635.1,0.4412]
[1736110409347,2.40326491,3635.3,3635.2,0.24761]
[1736110409548,2.15565491,3635.3,3635.1,0.4412]
[1736110409757,0.24761,3635.2,3635.1,0.24762]
[1736110411447,5.45006959,3635.3,3635.0,3.2078]
[1736110411647,0.24762,3635.1,3635.0,3.2078]
[1736110412451,0.24767,3634.4,3634.3,0.24767]
[1736110413150,0.24766,3634.5,3634.3,0.24767]
[1736110413550,2.15650336,3634.4,3634.3,0.24767]
[1736110414850,2.40416336,3634.5,3634.3,0.24767]
[1736110415451,0.4478,3634.4,3634.3,0.24767]
[1736110418451,0.4478,3634.4,3634.2,3.2078]
[1736110418854,0.4478,3634.4,3634.3,0.24767]
[1736110419553,0.4478,3634.4,3634.2,0.24768]
[1736110420055,0.4478,3634.4,3634.1,0.8356]
[1736110420256,0.4478,3634.4,3634.3,0.24767]
[1736110421455,2.15650336,3634.5,3634.4,0.24767]
[1736110422054,2.15650336,3634.6,3634.4,0.24767]
[1736110422259,2.15650336,3634.6,3634.5,0.24766]
[1736110423453,2.15650336,3634.6,3634.5,3.45546]
[1736110424157,2.15650336,3634.7,3634.6,0.24765]
[1736110424556,2.15650336,3634.7,3634.6,0.68385]
[1736110425659,3.68136271,3634.8,3634.6,0.68385]
[1736110425957,3.68136271,3634.8,3634.6,0.4362]
[1736110426158,3.68136271,3634.8,3634.7,0.24765]
[1736110426867,0.85946016,3634.8,3634.7,0.24765]
[1736110428266,0.4466,3634.8,3634.7,0.24765]
[1736110429460,0.4466,3634.8,3634.6,0.4362]
[1736110429461,0.69424,3634.8,3634.6,0.68385]
[1736110429966,3.93114342,3634.8,3634.6,0.68385]
[1736110430564,3.68350342,3634.8,3634.6,0.68385]
[1736110430767,3.23690342,3634.8,3634.6,0.4362]
[1736110431069,4.28187523,3634.9,3634.7,0.4343]
[1736110431265,4.28187523,3634.9,3634.8,0.24764]
[1736110432469,2.15886991,3635.0,3634.7,0.8553]
[1736110432669,2.15886991,3635.0,3634.9,0.24763]
[1736110432870,2.15886991,3635.0,3634.9,3.45543]
[1736110434171,2.15886991,3635.1,3635.0,0.24762]
[1736110435475,3.48591487,3635.2,3635.0,0.24762]
[1736110436572,0.24762,3635.0,3634.9,3.2078]
[1736110436771,0.24762,3635.0,3634.8,0.24764]
[1736110437074,0.4122,3634.9,3634.8,0.24764]
[1736110438069,0.4122,3634.9,3634.7,0.4343]
[1736110438370,0.8521,3634.9,3634.8,0.24764]
[1736110439371,4.50289518,3634.9,3634.8,0.24764]
[1736110444574,3.01106551,3634.9,3634.8,0.24764]
[1736110446372,2.15896551,3634.9,3634.8,0.24764]
[1736110446974,2.15896551,3634.9,3634.8,1.24695711]
[1736110447677,2.15896551,3635.0,3634.9,0.24763]
[1736110447877,2.15896551,3635.0,3634.9,3.45543]
[1736110449380,2.15896551,3635.1,3634.9,3.2078]
[1736110449579,2.15896551,3635.1,3635.0,0.24762]
[1736110450673,2.40658551,3635.1,3634.9,3.45543]
[1736110450879,0.4443,3635.0,3634.9,3.45543]
[1736110451880,2.60326551,3635.0,3634.9,3.45543]
[1736110458378,3.68224796,3635.0,3634.9,3.45543]
[1736110459696,0.4443,3635.0,3634.9,3.45543]
[1736110460799,2.60250003,3635.0,3634.9,3.45543]
[1736110462298,0.4443,3635.0,3634.9,3.45543]
[1736110463099,0.4443,3635.0,3634.9,3.87683]
[1736110464795,2.60250003,3635.0,3634.9,3.87683]
[1736110465098,2.15820003,3635.0,3634.9,3.87683]
[1736110466102,2.15820003,3635.1,3635.0,0.24762]
[1736110466399,2.15820003,3635.1,3635.0,0.65582]
[1736110468303,3.23794796,3635.2,3635.0,0.4082]
[1736110468504,3.23794796,3635.2,3635.1,0.24762]
[1736110469105,4.2373302,3635.2,3635.1,0.24762]
[1736110469702,4.6501168,3635.2,3635.1,0.24762]
[1736110471997,3.65073456,3635.2,3635.1,0.24762]
[1736110472810,3.64954796,3635.3,3635.2,0.24761]
[1736110474110,0.82438816,3635.3,3635.2,0.24761]
[1736110475513,4.69347523,3635.3,3635.2,0.24761]
[1736110476614,5.10626339,3635.3,3635.2,0.24761]
[1736110483822,0.82438816,3635.3,3635.2,0.24761]
[1736110485019,0.4116,3635.3,3635.2,0.24761]
[1736110486409,0.82438816,3635.3,3635.2,0.24761]
[1736110490017,5.93466945,3635.3,3635.2,0.24761]
[1736110491619,5.93466945,3635.3,3635.0,7.93579473]
[1736110491824,6.18227945,3635.3,3635.2,0.24761]
[1736110492331,0.65921,3635.3,3635.2,0.24761]
[1736110493427,6.46409533,3635.3,3635.2,0.24761]
[1736110494425,11.57478836,3635.3,3635.2,0.24761]
[1736110495422,11.32717836,3635.3,3635.0,7.93579473]
[1736110495619,1.24700224,3635.1,3635.0,7.52759473]